fUSD/lending_fUSD_20250606
["ID","MTS","AMOUNT","RATE_DAILY","PERIOD"]
[364727674,1749220282224,-4339.46,0.00030821,7]
[364727675,1749220282234,-550.99,0.00030821,7]
[364727676,1749220282244,-480.0,0.00030821,7]
[364727677,1749220282254,-480.0,0.00030821,7]
[364727678,1749220282264,-480.0,0.00030821,7]
[364727679,1749220282274,-558.97,0.00030821,7]
[364727680,1749220282284,-705.32,0.00030821,7]
[364727681,1749220282294,-638.49,0.00030821,7]
[364727682,1749220282304,-646.01,0.00030821,7]
[364727683,1749220282313,-480.0,0.00030821,7]
[364727684,1749220282323,-5821.7,0.00030821,7]
[364727685,1749220282332,-480.0,0.00030821,7]
[364727686,1749220282342,-151.0,0.00030821,7]
[364727687,1749220282352,-1415.28,0.00030821,7]
[364727688,1749220282362,-480.0,0.00030821,7]
[364727689,1749220282372,-480.0,0.00030821,7]
[364727690,1749220282385,-2997.28,0.00030821,7]
[364727691,1749220282394,-2219.2,0.00030821,7]
[364727692,1749220282404,-4881.17,0.00030821,7]
[364727693,1749220282414,-1494.8,0.00030821,7]
[364727694,1749220282425,-480.0,0.00030821,7]
[364727695,1749220282435,-480.0,0.00030821,7]
[364727696,1749220282445,-761.61,0.00030821,7]
[364727697,1749220282456,-2109.18,0.00030821,7]
[364727698,1749220282466,-1044.45,0.00030821,7]
[364727699,1749220282478,-480.0,0.00030821,7]
[364727700,1749220282488,-617.24,0.00030821,7]
[364727701,1749220282497,-6318.65,0.00030821,7]
[364727702,1749220282507,-1804.22,0.00030821,7]
[364727703,1749220282516,-776.29,0.00030821,7]
[364727704,1749220282527,-5806.79,0.00030821,7]
[364727705,1749220282538,-480.0,0.00030821,7]
[364727706,1749220282549,-902.05,0.00030821,7]
[364727707,1749220282559,-480.0,0.00030821,7]
[364727708,1749220282568,-677.86,0.00030821,7]
[364727709,1749220282577,-17052.87,0.00030821,7]
[364727710,1749220282587,-1448.58,0.00030821,7]
[364727711,1749220282596,-480.0,0.00030821,7]
[364727712,1749220282606,-480.0,0.00030821,7]
[364727713,1749220282615,-1087.78,0.00030821,7]
[364727714,1749220282625,-596.02,0.00030821,7]
[364727715,1749220282634,-1086.7,0.00030821,7]
[364727716,1749220282644,-1926.02,0.00030821,7]
[364727717,1749220282654,-1310.18,0.00030821,7]
[364727718,1749220282663,-480.01,0.00030821,7]
[364727719,1749220282673,-971.77,0.00030821,7]
[364727720,1749220282683,-2065.59,0.00030821,7]
[364727721,1749220282692,-480.0,0.00030821,7]
[364727722,1749220282702,-13307.39,0.00030821,7]
[364727723,1749220282712,-2324.9,0.00030821,7]
[364727724,1749220282721,-824.21,0.00030821,7]
[364727725,1749220282730,-480.0,0.00030821,7]
[364727726,1749220282740,-2178.92,0.00030821,7]
[364727727,1749220282750,-3945.0,0.00030821,7]
[364727728,1749220282759,-480.0,0.00030821,7]
[364727729,1749220282769,-4149.78,0.00030821,7]
[364727730,1749220282779,-3813.84,0.00030821,7]
[364727731,1749220282788,-1365.76,0.00030821,7]
[364727732,1749220282798,-984.68,0.00030821,7]
[364727733,1749220282807,-904.26,0.00030821,7]
[364727734,1749220282817,-480.0,0.00030821,7]
[364727735,1749220282826,-480.0,0.00030821,7]
[364727736,1749220282836,-151.0,0.00030821,7]
[364727737,1749220282845,-4903.83,0.00030821,7]
[364727738,1749220282854,-1112.93,0.00030821,7]
[364727739,1749220282863,-813.56,0.00030821,7]
[364727740,1749220282873,-1976.97,0.00030821,7]
[364727741,1749220282882,-3642.55,0.00030821,7]
[364727742,1749220282891,-2033.72,0.00030821,7]
[364727743,1749220282900,-1600.26,0.00030821,7]
[364727744,1749220282909,-878.97,0.00030821,7]
[364727745,1749220282918,-480.0,0.00030821,7]
[364727746,1749220282927,-480.0,0.00030821,7]
[364727747,1749220282938,-480.0,0.00030821,7]
[364727748,1749220282947,-948.36,0.00030821,7]
[364727749,1749220282956,-10382.45,0.00030821,7]
[364727750,1749220282966,-520.79,0.00030821,7]
[364727751,1749220282975,-480.0,0.00030821,7]
[364727752,1749220282984,-3570.9,0.00030821,7]
[364727753,1749220282993,-1399.06,0.00030821,2]
[364727754,1749220283003,-875.0,0.00030821,7]
[364727755,1749220283012,-1610.11,0.00030821,7]
[364727756,1749220283022,-506.97,0.00030821,7]
[364727757,1749220283031,-582.82,0.00030821,7]
[364727758,1749220283041,-1069.2,0.00030821,7]
[364727759,1749220283050,-5037.96,0.00030821,7]
[364727760,1749220283060,-1221.01,0.00030821,7]
[364727761,1749220283069,-2746.68,0.00030821,7]
[364727762,1749220283079,-1159.49,0.00030821,7]
[364727763,1749220283087,-1726.11,0.00030821,7]
[364727764,1749220283097,-480.0,0.00030821,7]
[364727765,1749220283107,-4017.92,0.00030821,7]
[364727766,1749220283116,-4678.49,0.00030821,7]
[364727767,1749220283126,-480.0,0.00030821,7]
[364727768,1749220283135,-1324.34,0.00030821,7]
[364727769,1749220283144,-576.09,0.00030821,7]
[364727770,1749220283154,-619.71,0.00030821,7]
[364727771,1749220283164,-1000.0,0.00030821,7]
[364727772,1749220283173,-1223.35,0.00030821,7]
[364727773,1749220283183,-480.0,0.00030821,7]
[364727774,1749220283192,-480.0,0.00030821,7]
[364727775,1749220283202,-480.0,0.00030821,7]
[364727776,1749220283212,-480.0,0.00030821,7]
[364727777,1749220283221,-2298.56,0.00030821,7]
[364727778,1749220283231,-1792.53,0.00030821,7]
[364727779,1749220283241,-783.46,0.00030821,7]
[364727780,1749220283251,-488.06,0.00030821,7]
[364727781,1749220283260,-480.0,0.00030821,7]
[364727782,1749220283270,-480.0,0.00030821,7]
[364727783,1749220283279,-4227.26,0.00030821,7]
[364727784,1749220283289,-4126.83,0.00030821,7]
[364727785,1749220283298,-985.6,0.00030821,7]
[364727786,1749220283308,-558.35,0.00030821,7]
[364727787,1749220283318,-480.0,0.00030821,7]
[364727788,1749220283327,-439.98438175,0.00030821,7]
[364727789,1749220283337,-1349.15,0.00030821,7]
[364727790,1749220283347,-480.0,0.00030821,7]
[364727791,1749220283356,-480.0,0.00030821,7]
[364727792,1749220283366,-296.24357066,0.00030821,7]
[364727793,1749220283375,-946.38,0.00030821,7]
[364727794,1749220283390,-480.0,0.00030821,7]
[364727795,1749220283400,-1957.15,0.00030821,7]
[364727796,1749220283409,-1972.33,0.00030821,7]
[364727797,1749220283419,-869.99,0.00030821,7]
[364727798,1749220283433,-667.66,0.00030821,7]
[364727799,1749220283443,-788.43,0.00030821,7]
[364727800,1749220283453,-480.0,0.00030821,7]
[364727801,1749220283466,-752.97,0.00030821,7]
[364727802,1749220283476,-480.0,0.00030821,7]
[364727803,1749220283486,-2371.57,0.00030821,7]
[364727804,1749220283710,-480.0,0.00030821,7]
[364727805,1749220283721,-480.0,0.00030821,7]
[364727806,1749220283731,-601.08,0.00030821,7]
[364727807,1749220283741,-480.0,0.00030821,7]
[364727808,1749220283751,-2258.41,0.00030821,7]
[364727809,1749220283761,-480.0,0.00030821,7]
[364727810,1749220283771,-480.0,0.00030821,7]
[364727811,1749220283781,-617.19,0.00030821,7]
[364727812,1749220283791,-957.11,0.00030821,7]
[364727813,1749220283800,-505.7175822,0.00030821,7]
[364727814,1749220283810,-15596.64,0.00030821,7]
[364727815,1749220283819,-661.16,0.00030821,7]
[364727816,1749220283830,-1003.28,0.00030821,7]
[364727817,1749220283841,-1277.26,0.00030821,7]
[364727818,1749220283851,-846.81,0.00030821,7]
[364727819,1749220283861,-1738.04,0.00030821,7]
[364727820,1749220283871,-480.0,0.00030821,7]
[364727821,1749220283881,-2129.46,0.00030821,7]
[364727822,1749220283890,-820.16,0.00030821,7]
[364727823,1749220283899,-1214.21,0.00030821,7]
[364727824,1749220283909,-480.0,0.00030821,7]
[364727825,1749220283918,-2196.5,0.00030821,7]
[364727826,1749220283927,-923.4,0.00030821,7]
[364727827,1749220283939,-2461.07,0.00030821,7]
[364727828,1749220283948,-2342.28,0.00030821,7]
[364727829,1749220283958,-2121.81,0.00030821,7]
[364727830,1749220283968,-1254.9,0.00030821,7]
[364727831,1749220283978,-480.0,0.00030821,7]
[364727832,1749220283988,-1793.96,0.00030821,7]
[364727833,1749220283998,-896.54,0.00030821,7]
[364727834,1749220284008,-2687.86,0.00030821,7]
[364727835,1749220284018,-480.0,0.00030821,7]
[364727836,1749220284027,-979.7,0.00030821,7]
[364727837,1749220284037,-480.0,0.00030821,7]
[364727838,1749220284047,-761.13,0.00030821,2]
[364727839,1749220284056,-820.24,0.00030821,7]
[364727840,1749220284066,-873.83,0.00030821,7]
[364727841,1749220284075,-1677.25,0.00030821,7]
[364727842,1749220284085,-1293.09,0.00030821,7]
[364727843,1749220284095,-529.01,0.00030821,7]
[364727844,1749220284105,-1068.09,0.00030821,7]
[364727845,1749220284115,-787.96,0.00030821,7]
[364727846,1749220284124,-480.0,0.00030821,7]
[364727847,1749220284134,-1242.86,0.00030821,7]
[364727848,1749220284144,-11034.26,0.00030821,7]
[364727849,1749220284153,-480.0,0.00030821,7]
[364727850,1749220284163,-497.3887721,0.00030821,7]
[364727851,1749220284172,-564.91,0.00030821,7]
[364727852,1749220284182,-480.0,0.00030821,7]
[364727853,1749220284192,-937.81,0.00030821,2]
[364727854,1749220284202,-480.0,0.00030821,7]
[364727855,1749220284211,-480.0,0.00030821,7]
[364727856,1749220284222,-671.61,0.00030821,7]
[364727857,1749220284232,-699.69,0.00030821,7]
[364727858,1749220284242,-2147.96,0.00030821,7]
[364727859,1749220284253,-569.84,0.00030821,7]
[364727860,1749220284263,-806.66,0.00030821,7]
[364727861,1749220284272,-1417.78,0.00030821,7]
[364727862,1749220284282,-720.25,0.00030821,7]
[364727863,1749220284291,-1409.97,0.00030821,7]
[364727864,1749220284301,-480.0,0.00030821,7]
[364727865,1749220284311,-1915.93,0.00030821,7]
[364727866,1749220284320,-1184.01,0.00030821,7]
[364727867,1749220284330,-151.0,0.00030821,7]
[364727868,1749220284340,-1233.97,0.00030821,7]
[364727869,1749220284349,-480.0,0.00030821,7]
[364727870,1749220284359,-480.0,0.00030821,7]
[364727871,1749220284369,-480.0,0.00030821,7]
[364727872,1749220284380,-480.0,0.00030821,7]
[364727873,1749220284392,-480.0,0.00030821,7]
[364727874,1749220284402,-480.0,0.00030821,7]
[364727875,1749220284412,-428.0,0.00030822,2]
[364727876,1749220284422,-927.0,0.00030822,7]
[364727877,1749220284434,-646.0,0.00030822,7]
[364727878,1749220284443,-150.0,0.00030825,7]
[364727879,1749220284453,-150.0,0.00030825,7]
[364727880,1749220284464,-239.4279877,0.00030827,7]
[364727881,1749220284474,-186.88884126,0.00030827,7]
[364727882,1749220284484,-1004.8983,0.00030831,3]
[364727883,1749220284494,-2000.0,0.00030831,3]
[364727884,1749220284504,-150.0,0.00030834,7]
[364727885,1749220284513,-150.0,0.00030836,7]
[364727886,1749220284524,-239.4279877,0.0003084,7]
[364727887,1749220284533,-186.88884126,0.0003084,7]
[364727888,1749220284543,-150.0,0.00030843,7]
[364727889,1749220284553,-210.982028,0.00030845,7]
[364727890,1749220284563,-210.982028,0.00030845,7]
[364727891,1749220284573,-151.0,0.00030845,7]
[364727892,1749220284583,-150.0,0.00030846,7]
[364727893,1749220284593,-150.0,0.00030849,7]
[364727894,1749220284603,-428.0,0.00030849,2]
[364727895,1749220284613,-927.0,0.00030849,7]
[364727896,1749220284623,-646.0,0.00030849,7]
[364727897,1749220284632,-239.4279877,0.00030853,7]
[364727898,1749220284642,-186.88884126,0.00030853,7]
[364727899,1749220284651,-150.0,0.00030858,7]
[364727900,1749220284661,-150.0,0.00030866,7]
[364727901,1749220284671,-239.4279877,0.00030867,7]
[364727902,1749220284681,-186.88884126,0.00030867,7]
[364727903,1749220284691,-150.0,0.00030871,7]
[364727904,1749220284701,-428.0,0.00030877,2]
[364727905,1749220284710,-927.0,0.00030877,7]
[364727906,1749220284720,-646.0,0.00030877,7]
[364727907,1749220284729,-151.0,0.00030879,7]
[364727908,1749220284739,-151.0,0.00030879,7]
[364727909,1749220284749,-157.588458,0.00030879,7]
[364727910,1749220284758,-239.4279877,0.0003088,7]
[364727911,1749220284769,-186.88884126,0.0003088,7]
[364727912,1749220284779,-150.0,0.0003088,7]
[364727913,1749220284788,-150.0,0.0003088,7]
[364727914,1749220284798,-150.0,0.0003088,7]
[364727915,1749220284807,-150.0,0.0003088,7]
[364727916,1749220284817,-150.0,0.00030887,7]
[364727917,1749220284827,-239.4279877,0.00030893,7]
[364727918,1749220284836,-186.88884126,0.00030893,7]
[364727919,1749220284846,-150.0,0.00030899,7]
[364727920,1749220284855,-119961.62,0.000309,7]
[364727921,1749220284864,-209.3,0.000309,4]
[364727922,1749220284873,-500.0,0.000309,2]
[364727923,1749220284883,-500.0,0.000309,2]
[364727924,1749220284892,-500.0,0.000309,2]
[364727925,1749220284902,-500.0,0.000309,2]
[364727926,1749220284911,-500.0,0.000309,2]
[364727927,1749220284920,-500.0,0.000309,2]
[364727928,1749220284931,-500.0,0.000309,2]
[364727929,1749220284940,-300.0,0.000309,11]
[364727930,1749220284949,-500.0,0.000309,2]
[364727931,1749220284959,-508.0,0.000309,2]
[364727932,1749220284969,-500.0,0.000309,2]
[364727933,1749220284979,-500.0,0.000309,2]
[364727934,1749220284988,-500.0,0.000309,2]
[364727935,1749220284998,-500.0,0.000309,2]
[364727936,1749220285008,-500.0,0.000309,2]
[364727937,1749220285017,-500.0,0.000309,2]
[364727938,1749220285027,-500.0,0.000309,2]
[364727939,1749220285036,-500.0,0.000309,2]
[364727940,1749220285046,-500.0,0.000309,2]
[364727941,1749220285055,-500.0,0.000309,2]
[364727942,1749220285065,-500.0,0.000309,2]
[364727943,1749220285075,-500.0,0.000309,2]
[364727944,1749220285084,-500.0,0.000309,2]
[364727945,1749220285093,-500.0,0.000309,2]
[364727946,1749220285103,-500.0,0.000309,2]
[364727947,1749220285112,-500.0,0.000309,2]
[364727948,1749220285121,-500.0,0.000309,2]
[364727949,1749220285131,-500.0,0.000309,2]
[364727950,1749220285142,-500.0,0.000309,2]
[364727951,1749220285151,-500.0,0.000309,2]
[364727952,1749220285162,-500.0,0.000309,2]
[364727953,1749220285171,-500.0,0.000309,2]
[364727954,1749220285181,-500.0,0.000309,2]
[364727955,1749220285191,-500.0,0.000309,2]
[364727956,1749220285201,-500.0,0.000309,2]
[364727957,1749220285210,-500.0,0.000309,2]
[364727958,1749220285220,-500.0,0.000309,2]
[364727959,1749220285230,-500.0,0.000309,2]
[364727960,1749220285239,-500.0,0.000309,2]
[364727961,1749220285249,-500.0,0.000309,2]
[364727962,1749220285259,-500.0,0.000309,2]
[364727963,1749220285269,-500.0,0.000309,2]
[364727964,1749220285279,-571.0,0.000309,2]
[364727965,1749220285289,-5562.0,0.000309,3]
[364727966,1749220285298,-150.0,0.00030902,7]
[364727967,1749220285308,-150.0,0.00030903,7]
[364727968,1749220285318,-428.0,0.00030904,2]
[364727969,1749220285327,-927.0,0.00030904,7]
[364727970,1749220285337,-646.0,0.00030904,7]
[364727971,1749220285346,-5323.03729434,0.00030904,2]
[364727972,1749220285356,-5849.89981062,0.00030904,2]
[364727973,1749220285366,-239.4279877,0.00030907,7]
[364727974,1749220285376,-186.88884126,0.00030907,7]
[364727975,1749220285393,-150.0,0.00030908,7]
[364727976,1749220285402,-150.0,0.00030911,7]
[364727977,1749220285411,-239.4279877,0.0003092,7]
[364727978,1749220285421,-186.88884126,0.0003092,7]
[364727979,1749220285432,-150.0,0.00030924,7]
[364727980,1749220285442,-150.0,0.00030927,7]
[364727981,1749220285451,-150.0,0.00030928,7]
[364727982,1749220285462,-428.0,0.00030931,2]
[364727983,1749220285472,-927.0,0.00030931,7]
[364727984,1749220285482,-646.0,0.00030931,7]
[364727985,1749220285492,-239.4279877,0.00030933,7]
[364727986,1749220285501,-186.88884126,0.00030933,7]
[364727987,1749220285510,-150.0,0.00030943,7]
[364727988,1749220285519,-150.0,0.00030946,7]
[364727989,1749220285529,-239.4279877,0.00030947,7]
[364727990,1749220285538,-186.88884126,0.00030947,7]
[364727991,1749220285548,-150.0,0.00030949,7]
[364727992,1749220285558,-150.0,0.00030955,7]
[364727993,1749220285567,-428.0,0.00030959,2]
[364727994,1749220285576,-927.0,0.00030959,7]
[364727995,1749220285587,-646.0,0.00030959,7]
[364727996,1749220285596,-239.4279877,0.0003096,7]
[364727997,1749220285605,-186.88884126,0.0003096,7]
[364727998,1749220285615,-1415.671635,0.00030965,2]
[364727999,1749220285624,-5586.436646,0.00030965,2]
[364728000,1749220285633,-3355.7616572,0.00030965,2]
[364728001,1749220285642,-150.0,0.00030968,7]
[364728002,1749220285652,-150.0,0.00030969,7]
[364728003,1749220285662,-400.0,0.0003097,2]
[364728004,1749220285671,-400.0,0.0003097,2]
[364728005,1749220285681,-150.0,0.00030973,7]
[364728006,1749220285690,-239.4279877,0.00030973,7]
[364728007,1749220285700,-186.88884126,0.00030973,7]
[364728008,1749220285709,-150.0,0.00030974,7]
[364728009,1749220285718,-213.0,0.0003098,30]
[364728010,1749220285728,-211.0,0.0003098,2]
[364728011,1749220285737,-213.0,0.0003098,30]
[364728012,1749220285747,-213.0,0.0003098,2]
[364728013,1749220285756,-210.0,0.0003098,2]
[364728014,1749220285765,-212.0,0.0003098,30]
[364728015,1749220285775,-211.0,0.0003098,2]
[364728016,1749220285784,-203.0,0.0003098,2]
[364728017,1749220285794,-150.0,0.00030983,7]
[364728018,1749220285803,-150.0,0.00030985,2]
[364728019,1749220285815,-2067.21916403,0.00030986,7]
[364728020,1749220285827,-151.0,0.00030986,7]
[364728021,1749220285837,-210.982028,0.00030986,7]
[364728022,1749220285848,-210.982018,0.00030986,7]
[364728023,1749220285857,-151.0,0.00030986,7]
[364728024,1749220285866,-164.396546,0.00030986,7]
[364728025,1749220285876,-164.396544,0.00030986,7]
[364728026,1749220285885,-151.0,0.00030986,7]
[364728027,1749220285895,-151.0,0.00030986,7]
[364728028,1749220285905,-173.795224,0.00030986,7]
[364728029,1749220285914,-173.795232,0.00030986,7]
[364728030,1749220285924,-165.046603,0.00030986,7]
[364728031,1749220285935,-151.0,0.00030986,7]
[364728032,1749220285944,-165.046612,0.00030986,7]
[364728033,1749220285954,-178.626492,0.00030986,7]
[364728034,1749220285964,-178.6265,0.00030986,7]
[364728035,1749220285973,-1360.080029,0.00030986,7]
[364728036,1749220285983,-1360.08003447,0.00030986,7]
[364728037,1749220285992,-2222.878919,0.00030986,7]
[364728038,1749220286001,-151.0,0.00030986,7]
[364728039,1749220286010,-2069.069336,0.00030986,7]
[364728040,1749220286020,-242.735552,0.00030986,7]
[364728041,1749220286029,-242.735553,0.00030986,7]
[364728042,1749220286038,-151.0,0.00030986,7]
[364728043,1749220286047,-250.836236,0.00030986,7]
[364728044,1749220286055,-480.0,0.00030986,7]
[364728045,1749220286064,-545.88305869,0.00030986,7]
[364728046,1749220286073,-480.0,0.00030986,7]
[364728047,1749220286083,-419.2472697,0.00030986,7]
[364728048,1749220286093,-617.81,0.00030986,7]
[364728049,1749220286103,-480.0,0.00030986,7]
[364728050,1749220286113,-234.971268,0.00030986,7]
[364728051,1749220286122,-480.0,0.00030986,7]
[364728052,1749220286133,-234.971269,0.00030986,7]
[364728053,1749220286142,-480.0,0.00030986,7]
[364728054,1749220286152,-480.0,0.00030986,7]
[364728055,1749220286162,-500.0,0.00030986,7]
[364728056,1749220286173,-1997.23,0.00030986,7]
[364728057,1749220286183,-480.0,0.00030986,7]
[364728058,1749220286193,-847.34,0.00030986,7]
[364728059,1749220286203,-463.24735372,0.00030986,7]
[364728060,1749220286212,-500.0,0.00030986,7]
[364728061,1749220286221,-248.51935007,0.00030986,7]
[364728062,1749220286230,-480.0,0.00030986,7]
[364728063,1749220286240,-480.0,0.00030986,7]
[364728064,1749220286249,-480.0,0.00030986,7]
[364728065,1749220286259,-480.0,0.00030986,7]
[364728066,1749220286269,-480.0,0.00030986,7]
[364728067,1749220286278,-211.41374949,0.00030986,7]
[364728068,1749220286287,-480.0,0.00030986,7]
[364728069,1749220286296,-557.72,0.00030986,7]
[364728070,1749220286306,-480.0,0.00030986,7]
[364728071,1749220286315,-480.0,0.00030986,7]
[364728072,1749220286324,-681.93,0.00030986,7]
[364728073,1749220286334,-480.0,0.00030986,7]
[364728074,1749220286343,-480.0,0.00030986,7]
[364728075,1749220286353,-461.88179472,0.00030986,7]
[364728076,1749220286362,-683.06,0.00030986,7]
[364728077,1749220286371,-480.0,0.00030986,7]
[364728078,1749220286383,-1194.15,0.00030986,7]
[364728079,1749220286393,-480.0,0.00030986,7]
[364728080,1749220286402,-480.0,0.00030986,7]
[364728081,1749220286411,-480.0,0.00030986,7]
[364728082,1749220286421,-504.02,0.00030986,7]
[364728083,1749220286430,-699.24,0.00030986,7]
[364728084,1749220286439,-480.0,0.00030986,7]
[364728085,1749220286449,-480.0,0.00030986,7]
[364728086,1749220286461,-480.0,0.00030986,7]
[364728087,1749220286472,-480.0,0.00030986,7]
[364728088,1749220286481,-579.78207384,0.00030986,7]
[364728089,1749220286491,-480.0,0.00030986,7]
[364728090,1749220286500,-480.0,0.00030986,7]
[364728091,1749220286510,-247.87578849,0.00030986,7]
[364728092,1749220286520,-480.0,0.00030986,7]
[364728093,1749220286531,-480.0,0.00030986,7]
[364728094,1749220286540,-819.51,0.00030986,7]
[364728095,1749220286550,-480.0,0.00030986,7]
[364728096,1749220286559,-499.1341257,0.00030986,7]
[364728097,1749220286569,-480.0,0.00030986,7]
[364728098,1749220286579,-979.25,0.00030986,7]
[364728099,1749220286589,-613.49,0.00030986,7]
[364728100,1749220286598,-480.0,0.00030986,7]
[364728101,1749220286607,-480.0,0.00030986,7]
[364728102,1749220286616,-480.0,0.00030986,7]
[364728103,1749220286625,-625.10902855,0.00030986,7]
[364728104,1749220286634,-1135.81,0.00030986,7]
[364728105,1749220286643,-480.0,0.00030986,7]
[364728106,1749220286652,-480.0,0.00030986,7]
[364728107,1749220286662,-504.16,0.00030986,7]
[364728108,1749220286671,-480.0,0.00030986,7]
[364728109,1749220286680,-480.0,0.00030986,7]
[364728110,1749220286689,-480.0,0.00030986,7]
[364728111,1749220286698,-480.0,0.00030986,7]
[364728112,1749220286709,-741.75,0.00030986,7]
[364728113,1749220286718,-480.0,0.00030986,7]
[364728114,1749220286728,-480.0,0.00030986,7]
[364728115,1749220286738,-830.77,0.00030986,7]
[364728116,1749220286747,-480.0,0.00030986,7]
[364728117,1749220286756,-169.38720944,0.00030986,7]
[364728118,1749220286766,-480.0,0.00030986,7]
[364728119,1749220286943,-843.49,0.00030986,7]
[364728120,1749220286953,-480.0,0.00030986,7]
[364728121,1749220286963,-480.0,0.00030986,7]
[364728122,1749220286972,-480.0,0.00030986,7]
[364728123,1749220286981,-480.0,0.00030986,7]
[364728124,1749220286991,-480.0,0.00030986,7]
[364728125,1749220287000,-2600.34,0.00030986,7]
[364728126,1749220287009,-620.62,0.00030986,7]
[364728127,1749220287018,-1342.16,0.00030986,7]
[364728128,1749220287028,-847.94,0.00030986,7]
[364728129,1749220287037,-675.47,0.00030986,30]
[364728130,1749220287046,-507.4,0.00030986,7]
[364728131,1749220287056,-480.0,0.00030986,7]
[364728132,1749220287066,-621.25,0.00030986,7]
[364728133,1749220287075,-694.31,0.00030986,7]
[364728134,1749220287085,-480.0,0.00030986,7]
[364728135,1749220287094,-171.00455755,0.00030986,7]
[364728136,1749220287104,-480.0,0.00030986,7]
[364728137,1749220287114,-480.0,0.00030986,7]
[364728138,1749220287124,-401.80771988,0.00030986,7]
[364728139,1749220287134,-480.0,0.00030986,7]
[364728140,1749220287143,-480.0,0.00030986,7]
[364728141,1749220287154,-480.0,0.00030986,7]
[364728142,1749220287164,-529.44,0.00030986,7]
[364728143,1749220287174,-737.4,0.00030986,7]
[364728144,1749220287184,-480.0,0.00030986,7]
[364728145,1749220287194,-480.0,0.00030986,7]
[364728146,1749220287203,-586.20700295,0.00030986,7]
[364728147,1749220287213,-721.19,0.00030986,7]
[364728148,1749220287222,-1441.03,0.00030986,7]
[364728149,1749220287231,-1003.2,0.00030986,7]
[364728150,1749220287241,-480.0,0.00030986,7]
[364728151,1749220287251,-480.0,0.00030986,7]
[364728152,1749220287260,-1057.7,0.00030986,7]
[364728153,1749220287269,-480.0,0.00030986,7]
[364728154,1749220287279,-729.61,0.00030986,7]
[364728155,1749220287289,-480.0,0.00030986,7]
[364728156,1749220287299,-730.84,0.00030986,7]
[364728157,1749220287309,-689.59,0.00030986,7]
[364728158,1749220287319,-480.0,0.00030986,7]
[364728159,1749220287329,-1560.79,0.00030986,7]
[364728160,1749220287338,-480.0,0.00030986,7]
[364728161,1749220287348,-1787.56,0.00030986,7]
[364728162,1749220287357,-1063.57,0.00030986,7]
[364728163,1749220287367,-775.63,0.00030986,7]
[364728164,1749220287377,-1536.34,0.00030986,7]
[364728165,1749220287392,-480.0,0.00030986,7]
[364728166,1749220287402,-480.0,0.00030986,7]
[364728167,1749220287412,-480.0,0.00030986,7]
[364728168,1749220287422,-1206.52,0.00030986,7]
[364728169,1749220287433,-480.0,0.00030986,7]
[364728170,1749220287442,-608.45,0.00030986,7]
[364728171,1749220287452,-480.0,0.00030986,7]
[364728172,1749220287462,-920.1,0.00030986,7]
[364728173,1749220287472,-480.0,0.00030986,7]